bitfinex-derivatives/quotes_BTCF0:USTF0_20240913
["timestamp","ask_amount","ask_price","bid_price","bid_amount"]
[1726241038740,0.45,58920.0,58900.0,0.001]
[1726241038741,0.3608,58901.0,58900.0,0.001]
[1726241038943,0.084869,58912.0,58890.0,0.3608]
[1726241039141,0.3608,58908.0,58890.0,0.3608]
[1726241039546,0.084876,58907.0,58890.0,0.3608]
[1726241039949,0.084876,58907.0,58884.0,0.3608]
[1726241039950,0.3608,58893.0,58884.0,0.3608]
[1726241040143,0.3608,58893.0,58843.0,0.09976775]
[1726241040144,0.3608,58887.0,58869.0,0.8108]
[1726241040341,0.084903,58888.0,58877.0,0.3608]
[1726241040544,0.445703,58888.0,58869.0,0.8108]
[1726241040855,0.3608,58879.0,58869.0,0.8108]
[1726241041050,0.3608,58886.0,58878.0,0.3608]
[1726241041350,0.3608,58886.0,58875.0,0.45]
[1726241041351,0.3608,58886.0,58882.0,0.45]
[1726241041943,0.3608,58886.0,58879.0,0.3608]
[1726241042356,0.3608,58898.0,58881.0,0.45]
[1726241042665,0.3608,58898.0,58887.0,0.3608]
[1726241042953,0.3608,58892.0,58881.0,0.45]
[1726241043161,0.3608,58887.0,58869.0,0.3608]
[1726241043343,0.084914,58881.0,58869.0,0.3608]
[1726241043745,0.3608,58887.0,58869.0,0.3608]
[1726241043939,0.084909,58884.0,58869.0,0.3608]
[1726241044147,0.084909,58884.0,58875.0,0.45]
[1726241044346,0.3608,58887.0,58876.0,0.3608]
[1726241044848,0.3608,58887.0,58875.0,0.00104]
[1726241045042,0.00088,58890.0,58879.0,0.3608]
[1726241045359,0.00088,58890.0,58874.0,0.45]
[1726241045360,0.3608,58883.0,58874.0,0.3608]
[1726241045544,0.3608,58878.0,58868.0,0.81188]
[1726241045746,0.084913,58881.0,58868.0,0.8108]
[1726241046148,0.084906,58886.0,58868.0,0.8108]
[1726241046448,0.3608,58888.0,58874.0,0.45]
[1726241046650,0.084902,58889.0,58877.0,0.3608]
[1726241046846,0.1819,58891.0,58874.0,0.00104]
[1726241046847,0.084914,58880.0,58874.0,0.00104]
[1726241047046,0.084914,58880.0,58868.0,0.3608]
[1726241047753,0.084919,58877.0,58868.0,0.3608]
[1726241048053,0.3608,58876.0,58868.0,0.3608]
[1726241048252,0.08493,58869.0,58868.0,0.3608]
[1726241048452,0.3608,58876.0,58854.0,0.3608]
[1726241048673,0.084929,58870.0,58865.0,0.3608]
[1726241048846,0.084929,58870.0,58861.0,0.3608]
[1726241049044,0.3608,58876.0,58869.0,0.3608]
[1726241049258,0.3608,58876.0,58867.0,0.00104]
[1726241049447,0.3608,58876.0,58861.0,0.3608]
[1726241049648,0.08493,58869.0,58861.0,0.3608]
[1726241049964,0.084921,58875.0,58868.0,0.3608]
[1726241050147,0.3608,58882.0,58861.0,0.8108]
[1726241050148,0.3608,58882.0,58861.0,0.81184]
[1726241050450,0.3608,58882.0,58861.0,0.8108]
[1726241050652,0.3608,58873.0,58861.0,0.8108]
[1726241050853,0.084942,58861.0,58855.0,0.3608]
[1726241051059,0.3608,58873.0,58855.0,0.8108]
[1726241051060,0.084933,58867.0,58855.0,0.8108]
[1726241051359,0.084935,58866.0,58855.0,0.8108]
[1726241051544,0.084933,58867.0,58855.0,0.45]
[1726241051749,0.084936,58865.0,58857.0,0.3608]
[1726241051949,0.084926,58872.0,58857.0,0.3608]
[1726241052259,0.3608,58873.0,58855.0,0.46042317]
[1726241052564,0.3608,58873.0,58855.0,0.45942317]
[1726241052565,0.084948,58856.0,58855.0,0.45942317]
[1726241052942,0.3608,58873.0,58855.0,0.45942317]
[1726241053157,0.084948,58856.0,58855.0,0.45942317]
[1726241053363,0.084934,58867.0,58855.0,0.45]
[1726241053558,0.084943,58860.0,58855.0,0.45]
[1726241053762,1.5,58873.0,58856.0,0.3608]
[1726241054058,0.084952,58854.0,58850.0,0.3608]
[1726241054355,0.3608,58864.0,58849.0,0.45108]
[1726241054552,0.445738,58864.0,58849.0,0.8108]
[1726241054751,0.3608,58869.0,58856.0,0.3608]
[1726241055056,0.3608,58869.0,58855.0,0.45]
[1726241055057,0.3608,58865.0,58855.0,0.451]
[1726241055258,0.084948,58856.0,58855.0,0.45]
[1726241055461,0.084948,58856.0,58855.0,0.8108]
[1726241055759,0.3608,58881.0,58855.0,0.8108]
[1726241055760,0.4586,58901.0,58855.0,2.53618109]
[1726241055959,0.0945,58898.0,58883.0,0.45]
[1726241056154,0.0945,58898.0,58888.0,0.3608]
[1726241056354,0.084907,58885.0,58883.0,0.00108]
[1726241056662,0.084907,58885.0,58882.0,0.3608]
[1726241056663,0.4539,58891.0,58882.0,0.3608]
[1726241056857,0.084915,58879.0,58878.0,0.001]
[1726241057060,0.084915,58879.0,58874.0,0.3608]
[1726241057061,0.3608,58885.0,58874.0,0.3608]
[1726241057265,0.3608,58883.0,58874.0,0.3608]
[1726241057469,0.3608,58883.0,58866.0,0.45]
[1726241057757,0.084909,58884.0,58863.0,0.3608]
[1726241057948,0.084925,58872.0,58866.0,0.45]
[1726241058152,0.084931,58868.0,58866.0,0.45]
[1726241058355,0.3608,58874.0,58863.0,0.3608]
[1726241058560,0.3608,58868.0,58863.0,0.3608]
[1726241058864,0.3608,58879.0,58861.0,0.3608]
[1726241059056,0.084928,58870.0,58866.0,0.45]
[1726241059460,0.3608,58884.0,58866.0,0.45]
[1726241059461,0.084921,58875.0,58866.0,0.45]
[1726241059851,0.3608,58871.0,58866.0,0.45]
[1726241060050,0.3608,58871.0,58861.0,0.3608]
[1726241060051,0.3608,58871.0,58861.0,0.8108]
[1726241060353,0.3608,58871.0,58855.0,0.45]
[1726241060552,0.3608,58871.0,58855.0,0.8108]
[1726241060758,0.3608,58874.0,58862.0,0.45]
[1726241060951,0.3608,58874.0,58854.0,0.3608]
[1726241060952,0.3608,58869.0,58854.0,0.3608]
[1726241061159,0.3608,58869.0,58860.0,0.3608]
[1726241061350,0.084937,58865.0,58856.0,0.45]
[1726241061550,0.08494,58862.0,58856.0,0.45]
[1726241061764,0.084932,58868.0,58856.0,0.45]
[1726241061950,0.3608,58869.0,58856.0,0.45]
[1726241062155,0.084938,58864.0,58856.0,0.45]
[1726241062355,0.3608,58869.0,58856.0,0.45]
[1726241062755,0.3608,58869.0,58854.0,0.3608]
[1726241062756,0.08495,58855.0,58854.0,0.3608]
[1726241062959,0.8108,58869.0,58844.0,0.45]
[1726241062960,0.3608,58861.0,58849.0,0.3608]
[1726241063263,0.3608,58861.0,58844.0,0.451]
[1726241063264,0.3608,58861.0,58844.0,0.45112]
[1726241063465,0.3608,58861.0,58843.0,0.3608]
[1726241063466,0.084941,58861.0,58851.0,0.8108]
[1726241063659,0.3608,58867.0,58856.0,0.3608]
[1726241063857,0.3608,58867.0,58851.0,0.8108]
[1726241063858,0.3608,58867.0,58851.0,0.8118]
[1726241064051,0.3608,58867.0,58851.0,0.8108]
[1726241064372,0.084944,58859.0,58851.0,0.8108]
[1726241064752,0.084946,58858.0,58851.0,0.8108]
[1726241064958,0.3608,58862.0,58851.0,0.8108]
[1726241065158,0.3608,58862.0,58844.0,0.3608]
[1726241065159,0.08495,58855.0,58845.0,0.45]
[1726241065359,0.084952,58854.0,58845.0,0.45]
[1726241065553,0.3608,58857.0,58845.0,0.45]
[1726241065755,0.3608,58857.0,58844.0,0.3608]
[1726241065756,0.3608,58856.0,58844.0,0.3608]
[1726241065962,0.0885,58860.0,58845.0,0.45]
[1726241066154,0.173443,58860.0,58849.0,0.3608]
[1726241066357,1.5,58859.0,58849.0,0.3608]
[1726241066557,0.0885,58860.0,58849.0,0.3608]
[1726241066558,0.0885,58860.0,58849.0,0.445758]
[1726241066855,0.0885,58860.0,58854.0,0.3608]
[1726241067161,0.0885,58860.0,58853.0,0.445752]
[1726241067367,0.0885,58860.0,58858.0,0.445744]
[1726241067563,0.50968,58859.0,58853.0,0.3608]
[1726241067765,0.0885,58860.0,58842.0,0.00936806]
[1726241067963,0.084945,58858.0,58844.0,0.3608]
[1726241068364,0.084947,58857.0,58845.0,0.084964]
[1726241068563,0.3608,58855.0,58844.0,0.3608]
[1726241069267,0.0885,58860.0,58851.0,0.3608]
[1726241069460,0.0885,58860.0,58858.0,0.3608]
[1726241069661,0.0885,58860.0,58856.0,0.3608]
[1726241070375,0.0885,58860.0,58853.0,0.451]
[1726241070670,0.0885,58860.0,58853.0,0.084953]
[1726241070859,0.084947,58858.0,58849.0,0.084957]
[1726241071057,0.3608,58855.0,58846.0,0.3608]
[1726241071557,0.3608,58849.0,58841.0,0.3618]
[1726241071757,0.3608,58849.0,58841.0,0.3608]
[1726241071963,0.3608,58843.0,58827.0,0.3608]
[1726241072164,0.3608,58838.0,58831.0,0.45]
[1726241072483,0.3608,58851.0,58847.0,0.08496]
[1726241072667,0.3608,58851.0,58845.0,0.45]
[1726241072858,0.3608,58851.0,58839.0,0.45]
[1726241073058,0.3608,58851.0,58844.0,0.084966]
[1726241073271,0.3608,58851.0,58845.0,0.084964]
[1726241074075,0.3608,58851.0,58848.0,0.084958]
[1726241074669,0.3608,58851.0,58840.0,0.3608]
[1726241074670,0.3608,58851.0,58849.0,0.084958]
[1726241074858,0.3608,58851.0,58837.0,0.00725478]
[1726241074859,0.3608,58851.0,58833.0,0.45]
[1726241075064,0.3608,58841.0,58833.0,0.45]
[1726241075261,0.084958,58850.0,58841.0,0.084969]
[1726241075466,0.3608,58846.0,58842.0,0.084967]
[1726241075665,0.3608,58846.0,58833.0,0.45]
[1726241075869,0.3608,58846.0,58845.0,0.084964]
[1726241076060,0.3608,58851.0,58844.0,0.45]
[1726241076266,0.3608,58851.0,58850.0,0.084957]
[1726241077272,0.3608,58853.0,58844.0,0.45]
[1726241077570,0.445753,58853.0,58848.0,0.084959]
[1726241078171,0.445753,58853.0,58844.0,0.45116]
[1726241078371,0.00088,58855.0,58850.0,0.45]
[1726241078565,0.3608,58867.0,58859.0,0.084944]
[1726241078765,0.3608,58867.0,58859.0,0.895744]
[1726241079169,0.0871,58868.0,58859.0,0.895744]
[1726241079369,0.3608,58873.0,58859.0,0.980688]
[1726241079573,1.8608,58883.0,58859.0,0.980688]
[1726241079574,0.084914,58880.0,58875.0,0.08492]
[1726241079777,0.0891,58881.0,58875.0,0.08492]
[1726241080276,0.0891,58881.0,58871.0,0.451]
[1726241080477,0.0891,58881.0,58871.0,0.534926]
[1726241080669,0.0891,58881.0,58872.0,0.084924]
[1726241080873,0.0891,58881.0,58866.0,0.45]
[1726241081069,0.084929,58870.0,58864.0,0.084936]
[1726241081374,0.084935,58866.0,58861.0,0.084941]
[1726241081579,0.3608,58868.0,58863.0,0.084938]
[1726241081877,0.445731,58868.0,58860.0,0.00108]
[1726241082063,0.3608,58871.0,58860.0,0.45]
[1726241082261,0.084926,58872.0,58870.0,0.084928]
[1726241082668,0.084931,58868.0,58866.0,0.001]
[1726241082864,0.5096,58871.0,58861.0,0.451]
[1726241082865,0.00088,58871.0,58861.0,0.451]
[1726241083081,1.50092,58874.0,58865.0,0.084935]
[1726241083580,0.084932,58868.0,58862.0,0.3608]
[1726241083880,0.084933,58867.0,58863.0,0.084937]
[1726241084081,0.084934,58866.0,58864.0,0.084936]
[1726241084282,0.3608,58869.0,58861.0,0.451]
[1726241084481,0.3608,58869.0,58837.0,0.0086]
[1726241084482,0.3608,58863.0,58852.0,0.06608208]
[1726241084778,0.3608,58863.0,58859.0,0.084943]
[1726241084979,0.3608,58863.0,58856.0,0.451]
[1726241085185,0.084945,58858.0,58856.0,0.45]
[1726241085376,0.3608,58863.0,58858.0,0.084945]
[1726241085573,0.3608,58863.0,58856.0,0.45]
[1726241085574,0.3608,58863.0,58856.0,0.535948]
[1726241085777,0.3608,58863.0,58856.0,0.45]
[1726241086074,0.084947,58857.0,58856.0,0.45]
[1726241086277,0.084956,58851.0,58847.0,0.08496]
[1726241086479,0.084956,58851.0,58845.0,0.536083]
[1726241086480,0.084963,58846.0,58845.0,0.536083]
[1726241086687,0.3608,58850.0,58849.0,0.084958]
[1726241086972,0.3608,58850.0,58845.0,0.45]
[1726241086973,0.084958,58850.0,58848.0,0.084959]
[1726241087173,0.084958,58850.0,58845.0,0.451]
[1726241087174,0.084958,58850.0,58849.0,0.084958]
[1726241087671,1.5,58857.0,58848.0,0.084959]
[1726241087672,0.08496,58849.0,58848.0,0.084959]
[1726241088277,1.5,58857.0,58845.0,0.45]
[1726241088479,1.5,58857.0,58856.0,0.084948]
[1726241088979,0.084936,58865.0,58863.0,0.084938]
[1726241089284,0.08493,58869.0,58855.0,0.45]
[1726241089481,0.084942,58861.0,58856.0,0.3608]
[1726241089690,0.084949,58856.0,58849.0,0.45]
[1726241089875,0.3608,58859.0,58849.0,0.45]
[1726241090183,0.08495,58856.0,58855.0,0.084949]
[1726241090686,0.084955,58852.0,58851.0,0.084955]
[1726241090983,0.3608,58859.0,58854.0,0.08495]
[1726241090984,0.084951,58855.0,58854.0,0.08495]
[1726241091373,0.084956,58851.0,58850.0,0.084957]
[1726241091881,0.084952,58854.0,58853.0,0.084952]
[1726241092270,0.3608,58859.0,58848.0,0.3608]
[1726241092479,0.445745,58859.0,58858.0,0.084945]
[1726241092681,0.3608,58859.0,58858.0,0.084945]
[1726241093078,0.084942,58861.0,58860.0,0.084939]
[1726241093583,0.084942,58861.0,58849.0,0.534958]
[1726241093584,0.084948,58857.0,58856.0,0.084947]
[1726241093782,0.084948,58857.0,58849.0,0.45]
[1726241093783,0.084951,58855.0,58854.0,0.08495]
[1726241093985,0.084951,58855.0,58849.0,0.00864623]
[1726241093986,0.084944,58860.0,58859.0,0.084943]
[1726241094177,0.001,58864.0,58850.0,0.084956]
[1726241094375,0.08495,58856.0,58855.0,0.084947]
[1726241094586,0.445735,58865.0,58849.0,0.451]
[1726241094881,0.084949,58857.0,58856.0,0.084947]
[1726241095384,1.5,58864.0,58856.0,0.084947]
[1726241095685,0.8108,58872.0,58849.0,0.451]
[1726241095686,0.36168,58872.0,58860.0,0.3608]
[1726241095881,0.36168,58872.0,58865.0,0.084934]
[1726241095882,0.084936,58866.0,58865.0,0.084934]
[1726241096892,0.08494,58863.0,58862.0,0.084939]
[1726241097384,0.3608,58872.0,58866.0,0.084933]
[1726241097385,0.084935,58867.0,58866.0,0.084933]
[1726241097775,0.08493,58870.0,58869.0,0.084927]
[1726241098277,0.084937,58865.0,58860.0,0.6308]
[1726241098587,0.084941,58862.0,58861.0,0.084941]
[1726241098776,0.084936,58866.0,58865.0,0.084934]
[1726241099282,0.08494,58863.0,58862.0,0.084939]
[1726241100280,0.084928,58870.0,58865.0,0.084935]
[1726241100476,0.084936,58866.0,58865.0,0.084934]
[1726241101087,0.084933,58868.0,58867.0,0.08493]
[1726241102282,0.084933,58868.0,58865.0,0.27]
[1726241102283,0.3608,58871.0,58865.0,0.6308]
[1726241102488,0.00088,58876.0,58875.0,0.169842]
[1726241102789,0.174013,58881.0,58880.0,0.084914]
[1726241103690,0.174013,58881.0,58877.0,0.084918]
[1726241103691,0.084919,58878.0,58877.0,0.084918]
[1726241103883,0.0891,58881.0,58880.0,0.084914]
[1726241104083,0.0891,58881.0,58880.0,0.354914]
[1726241104280,0.3608,58906.0,58880.0,0.77952]
[1726241104485,0.3608,58906.0,58893.0,0.27]
[1726241104486,0.00868653,58905.0,58893.0,0.27]
[1726241104701,0.3608,58906.0,58893.0,0.27]
[1726241104885,0.084881,58903.0,58893.0,0.6308]
[1726241105189,0.084855,58921.0,58902.0,0.3608]
[1726241105396,0.3608,58926.0,58911.0,0.27]
[1726241105584,0.445649,58926.0,58911.0,0.27]
[1726241105785,0.084849,58925.0,58913.0,0.3608]
[1726241105995,0.0948,58928.0,58924.0,0.3608]
[1726241106296,0.0948,58928.0,58924.0,0.44565]
[1726241106486,0.0948,58928.0,58920.0,0.3608]
[1726241106689,0.3608,58936.0,58920.0,0.3608]
[1726241106690,0.445595,58963.0,58927.0,0.3608]
[1726241106890,0.445595,58963.0,58916.0,0.00729632]
[1726241106891,0.3608,58953.0,58930.0,0.27]
[1726241107185,0.3608,58947.0,58937.0,0.084832]
[1726241107385,0.3608,58947.0,58937.0,0.3608]
[1726241107691,0.3608,58947.0,58929.0,0.3608]
[1726241107894,0.08482,58946.0,58936.0,0.3608]
[1726241108090,0.7216,58937.0,58912.0,0.0086]
[1726241108291,0.7216,58937.0,58911.0,0.3608]
[1726241108292,0.3608,58923.0,58911.0,0.3608]
[1726241108703,0.0985,58922.0,58911.0,0.3608]
[1726241109089,0.0985,58922.0,58906.0,0.27]
[1726241109294,0.0985,58922.0,58902.0,0.3608]
[1726241109295,0.3608,58915.0,58902.0,0.3608]
[1726241109498,0.3608,58920.0,58907.0,0.3608]
[1726241109687,0.1068431,58922.0,58912.0,0.6308]
[1726241109688,0.0985,58922.0,58912.0,0.6308]
[1726241110092,0.0985,58922.0,58912.0,0.3608]
[1726241110797,0.084832,58937.0,58918.0,0.3608]
[1726241110994,0.45,58938.0,58918.0,0.3608]
[1726241111198,0.3608,58934.0,58918.0,0.3608]
[1726241111403,0.45,58932.0,58918.0,0.3608]
[1726241111786,0.3608,58934.0,58915.0,0.3608]
[1726241111787,0.084851,58924.0,58915.0,0.3608]
[1726241111991,0.3608,58934.0,58922.0,0.3608]
[1726241112397,0.084837,58934.0,58922.0,0.3608]
[1726241112598,0.084838,58933.0,58922.0,0.3608]
[1726241112997,0.445638,58933.0,58922.0,0.3608]
[1726241113198,0.084842,58930.0,58922.0,0.3608]
[1726241113502,0.3608,58933.0,58922.0,0.3608]
[1726241113804,0.084838,58933.0,58922.0,0.3608]
[1726241113992,0.084835,58935.0,58922.0,0.3608]
[1726241114187,0.3608,58937.0,58922.0,0.3608]
[1726241114497,1.50088,58943.0,58936.0,0.3608]
[1726241114702,1.5,58943.0,58936.0,0.3608]
[1726241114885,0.084826,58942.0,58931.0,0.8118]
[1726241115091,0.084826,58942.0,58931.0,0.8108]
[1726241115389,1.50092,58943.0,58939.0,0.3608]
[1726241115592,1.5,58943.0,58939.0,0.3608]
[1726241115800,0.0981,58948.0,58939.0,0.3608]
[1726241115997,0.0981,58948.0,58947.0,0.3608]
[1726241116499,0.09202871,58963.0,58947.0,1.46972]
[1726241116703,0.084803,58957.0,58952.0,0.3608]
[1726241116897,0.084794,58963.0,58952.0,0.3608]
[1726241117104,0.084794,58963.0,58952.0,0.44561]
[1726241117293,0.3608,58964.0,58952.0,0.44561]
[1726241117499,0.084799,58960.0,58952.0,0.44561]
[1726241117890,0.3608,58959.0,58946.0,0.084818]
[1726241118199,0.45,58958.0,58943.0,0.001]
[1726241118400,0.45,58958.0,58935.0,0.45]
[1726241118401,0.084832,58937.0,58935.0,0.001]
[1726241118601,0.084832,58937.0,58928.0,0.3608]
[1726241118602,0.0948,58936.0,58928.0,0.3608]
[1726241118900,0.0948,58936.0,58929.0,0.45]
[1726241119493,0.179634,58936.0,58929.0,0.45]
[1726241119695,0.084835,58935.0,58929.0,0.534843]
[1726241119893,0.0948,58936.0,58929.0,0.45]
[1726241120192,0.0948,58936.0,58931.0,0.08484]
[1726241120399,0.3608,58943.0,58929.0,0.45]
[1726241120400,0.0001,58933.0,58932.0,0.084839]
[1726241120701,0.084841,58931.0,58929.0,0.451]
[1726241120905,0.084841,58931.0,58929.0,0.45]
[1726241121503,0.0001,58933.0,58929.0,0.45]
[1726241121691,0.084839,58932.0,58929.0,0.45]
[1726241121901,0.084842,58930.0,58929.0,0.45]
[1726241122199,0.3609,58933.0,58928.0,0.3608]
[1726241122398,0.3609,58933.0,58923.0,0.45]
[1726241122399,0.084845,58928.0,58923.0,0.451]
[1726241122599,0.084839,58932.0,58927.0,0.3608]
[1726241122902,0.0001,58933.0,58932.0,0.084839]
[1726241123105,0.0001,58933.0,58932.0,0.445639]
[1726241123603,0.0001,58933.0,58932.0,1.045639]
[1726241123898,0.0001,58933.0,58932.0,0.445639]
[1726241124106,0.0001,58933.0,58932.0,0.45301285]
[1726241124808,0.0001,58933.0,58932.0,0.3608]
[1726241124809,0.084937,58933.0,58932.0,0.3608]
[1726241125010,0.08484,58931.0,58930.0,0.00112]
[1726241125195,0.0001,58933.0,58927.0,0.3608]
[1726241125395,0.084845,58928.0,58927.0,0.3608]
[1726241125605,0.084847,58926.0,58925.0,0.001]
[1726241125800,0.084845,58928.0,58921.0,0.3608]
[1726241126000,0.084855,58921.0,58920.0,0.001]
[1726241126300,0.08484,58932.0,58917.0,0.3608]
[1726241126604,0.0001,58933.0,58922.0,0.084853]
[1726241126811,0.3608,58928.0,58917.0,0.3608]
[1726241127106,0.3608,58926.0,58917.0,0.3608]
[1726241127303,0.0001,58933.0,58929.0,0.084842]
[1726241127499,0.0001,58933.0,58921.0,0.451]
[1726241127703,0.0001,58933.0,58922.0,0.084852]
[1726241127899,0.0001,58933.0,58921.0,0.45112]
[1726241128103,0.0001,58933.0,58922.0,0.3608]
[1726241128298,0.0001,58933.0,58921.0,0.45]
[1726241128299,0.084853,58922.0,58921.0,0.451]
[1726241128607,0.084853,58922.0,58921.0,0.45]
[1726241129806,0.084853,58922.0,58911.0,0.3608]
[1726241129807,0.86996,58922.0,58911.0,0.3608]
[1726241129993,0.86996,58922.0,58909.0,0.45]
[1726241129994,0.08487,58910.0,58909.0,0.001]
[1726241130198,0.3608,58916.0,58899.0,0.3608]
[1726241130500,0.00732531,58930.0,58897.0,0.45]
[1726241130501,0.084882,58902.0,58897.0,0.001]
[1726241130696,0.3608,58908.0,58897.0,0.45]
[1726241130697,0.084878,58905.0,58897.0,0.45]
[1726241130897,2.3108,58915.0,58882.0,0.09811]
[1726241130898,0.3608,58915.0,58904.0,0.3608]
[1726241131097,0.3608,58925.0,58914.0,0.45]
[1726241131293,1.8608,58925.0,58917.0,0.084859]
[1726241131502,0.084859,58919.0,58914.0,0.45]
[1726241131700,0.084858,58919.0,58914.0,0.45]
[1726241131901,0.3608,58925.0,58914.0,0.45]
[1726241132106,0.084833,58936.0,58914.0,0.45]
[1726241132305,0.084833,58936.0,58932.0,0.3608]
[1726241132604,0.084835,58935.0,58932.0,0.534839]
[1726241132992,0.084836,58934.0,58932.0,0.084839]
[1726241133304,0.1853,58941.0,58932.0,0.084839]
[1726241133494,0.270127,58941.0,58932.0,0.084839]
[1726241133697,0.084831,58938.0,58932.0,0.084839]
[1726241133899,0.084828,58940.0,58932.0,0.084839]
[1726241134098,0.084832,58937.0,58932.0,0.084839]
[1726241134302,0.084835,58935.0,58932.0,0.084839]
[1726241134504,0.084832,58937.0,58932.0,0.084839]
[1726241135403,0.3608,58941.0,58931.0,0.27]
[1726241135605,0.084835,58935.0,58931.0,0.35484]
[1726241135794,0.3608,58941.0,58931.0,0.35484]
[1726241135998,0.3608,58941.0,58932.0,0.084839]
[1726241136398,0.084833,58936.0,58928.0,0.451]
[1726241136611,0.445626,58941.0,58928.0,0.084844]
[1726241136909,0.445626,58941.0,58926.0,0.084847]
[1726241137108,0.3608,58954.0,58932.0,0.445639]
[1726241137405,0.3608,58954.0,58932.0,0.3608]
[1726241137602,0.08481,58952.0,58935.0,0.45]
[1726241137795,0.36168,58954.0,58941.0,0.3608]
[1726241138002,0.3608,58954.0,58942.0,0.084824]
[1726241138205,0.3608,58954.0,58941.0,0.3608]
[1726241138506,0.3608,58947.0,58937.0,0.3608]
[1726241138805,0.084819,58946.0,58937.0,0.3608]
[1726241138999,0.08483,58938.0,58937.0,0.3608]
[1726241139605,0.3608,58947.0,58937.0,0.3608]
[1726241139606,0.084817,58947.0,58937.0,0.3608]
[1726241139795,0.44656801,58954.0,58940.0,0.084826]
[1726241139997,0.445608,58954.0,58941.0,0.084825]
[1726241140297,0.445608,58954.0,58937.0,0.3608]
[1726241140298,0.3608,58954.0,58942.0,0.084824]
[1726241140496,0.3608,58954.0,58944.0,0.084822]
[1726241140497,0.084821,58945.0,58944.0,0.084822]
[1726241140698,0.45,58959.0,58945.0,0.08482]
[1726241140898,0.084815,58949.0,58946.0,0.084819]
[1726241141411,0.084816,58948.0,58946.0,0.084819]
[1726241142102,0.084813,58951.0,58947.0,0.084817]
[1726241142303,0.084815,58949.0,58947.0,0.084817]
[1726241142607,0.00727926,58962.0,58940.0,0.084827]
[1726241142608,0.3608,58948.0,58940.0,0.084827]
[1726241143005,0.084824,58943.0,58940.0,0.084827]
[1726241143212,0.3608,58948.0,58940.0,0.084827]
[1726241143606,0.3608,58948.0,58942.0,0.3608]
[1726241143803,0.3608,58948.0,58935.0,0.45104]
[1726241143804,0.3608,58948.0,58937.0,0.3608]
[1726241144303,0.3608,58948.0,58938.0,0.08483]
[1726241144503,0.084827,58941.0,58938.0,0.08483]
[1726241144698,0.084817,58947.0,58938.0,0.08483]
[1726241144905,0.084817,58947.0,58939.0,0.084828]
[1726241145197,0.084819,58946.0,58937.0,0.3608]
[1726241145396,0.3608,58951.0,58941.0,0.084825]
[1726241145614,0.3608,58951.0,58937.0,0.445631]
[1726241145804,0.3608,58951.0,58937.0,0.084831]
[1726241146010,0.3608,58951.0,58939.0,0.084829]
[1726241146309,0.3608,58951.0,58935.0,0.451]
[1726241146610,1.5,58950.0,58931.0,0.3608]
[1726241146800,0.084837,58934.0,58933.0,0.084837]
[1726241147311,0.3608,58946.0,58931.0,0.36811384]
[1726241147511,0.084826,58941.0,58932.0,0.084839]
[1726241147709,0.3608,58946.0,58935.0,0.084833]
[1726241147904,0.3608,58946.0,58931.0,0.36811384]
[1726241147905,0.3608,58939.0,58936.0,0.084833]
[1726241148111,0.084832,58937.0,58936.0,0.084833]
[1726241148610,0.3608,58939.0,58931.0,0.36811384]
[1726241148611,0.3608,58939.0,58935.0,0.084834]
[1726241148806,0.3608,58939.0,58931.0,0.36811384]
[1726241149009,0.084835,58935.0,58934.0,0.084835]
[1726241149215,0.3608,58939.0,58931.0,0.45295384]
[1726241149216,0.084838,58933.0,58931.0,0.45295384]
[1726241149407,0.3608,58946.0,58931.0,0.45295384]
[1726241149408,0.08482,58945.0,58932.0,0.084839]
[1726241149605,0.084837,58933.0,58932.0,0.084839]
[1726241150102,0.084828,58940.0,58934.0,0.084835]
[1726241150299,0.084828,58940.0,58935.0,0.084834]
[1726241150515,0.084829,58939.0,58932.0,0.084839]
[1726241150710,0.084839,58932.0,58931.0,0.00731384]
[1726241150912,0.16968,58931.0,58930.0,0.001]
[1726241151114,0.084843,58929.0,58928.0,0.084844]
[1726241151609,0.3608,58934.0,58933.0,0.084837]
[1726241151610,0.084837,58934.0,58933.0,0.084837]
[1726241151801,0.084837,58933.0,58932.0,0.3608]
[1726241152007,0.084839,58932.0,58931.0,0.08484]
[1726241152511,0.3608,58939.0,58930.0,0.3608]
[1726241152512,0.3608,58939.0,58930.0,0.8108]
[1726241152718,0.084846,58928.0,58918.0,0.3608]
[1726241152907,0.36944412,58939.0,58918.0,0.3608]
[1726241152908,0.3608,58934.0,58923.0,0.00728866]
[1726241153109,0.084847,58927.0,58924.0,0.08485]
[1726241153308,0.445637,58934.0,58924.0,0.3608]
[1726241153507,0.084839,58933.0,58924.0,0.3608]
[1726241153719,0.084839,58933.0,58928.0,0.084843]
[1726241154017,0.08484,58931.0,58928.0,0.084843]
[1726241154712,0.3608,58937.0,58929.0,0.3608]
[1726241154713,0.084835,58935.0,58929.0,0.3608]
[1726241154903,0.084835,58935.0,58934.0,0.3608]
[1726241155104,0.084821,58945.0,58936.0,0.084833]
[1726241155910,0.084834,58935.0,58934.0,0.3608]
[1726241156217,0.084839,58933.0,58931.0,0.084839]
[1726241156510,0.354829,58939.0,58928.0,0.00756237]
[1726241156714,0.08484,58931.0,58930.0,0.084841]
[1726241157017,0.3608,58934.0,58924.0,0.3608]
[1726241157219,0.084838,58933.0,58924.0,0.00731519]